[Event "Seniors-LEM-65 Sachsen-Anhalt 2024"]
[Site "Magdeburg"]
[Date "2024.07.06"]
[Round "6.1"]
[White "Schnelzer, Reinhold"]
[Black "Babrikowski, Peter"]
[Result "1/2-1/2"]
[ECO "A84"]
[WhiteElo "2162"]
[BlackElo "2129"]
[Annotator "RC"]
[PlyCount "54"]
[EventDate "2024.06.25"]
[EventType "swiss"]
[EventCountry "GER"]
[SourceTitle "playchess.com"]
[Source "ChessBase"]
[SourceQuality "1"]
[TimeControl "40/5400+30:1800+30"]

1. d4 {[%emt 0:00:04]} e6 {[%emt 0:00:11]} 2. Nf3 {[%emt 0:00:09]} f5 {[%emt 0:00:44]} 3. c4 {[%emt 0:00:29]} Nf6 {[%emt 0:00:06]} 4. g3 {[%emt 0:00:15]} d5 {[%emt 0:00:30]} 5. Bf4 {[%emt 0:02:50]} c6 {[%emt 0:01:41]} 6. Qc2 {[%emt 0:01:34]} Bd6 {[%emt 0:04:00]} 7. Bxd6 {[%emt 0:03:14]} Qxd6 {[%emt 0:00:06]} 8. Bg2 {[%emt 0:01:41]} O-O {[%emt 0:00:40]} 9. O-O {[%emt 0:00:36]} b6 {[%emt 0:12:21]} 10. Nbd2 {[%emt 0:11:01]} Bb7 {[%emt 0:15:18]} 11. Rac1 {[%emt 0:06:57]} Nbd7 {[%emt 0:02:09]} 12. cxd5 {[%emt 0:16:47]} cxd5 {[%emt 0:00:36]} 13. Qc7 {[%emt 0:00:52]} Qxc7 {[%emt 0:00:11]} 14. Rxc7 {[%emt 0:00:03]} Ba6 {[%emt 0:00:13]} 15. Ng5 {[%emt 0:10:58]} Rfe8 {[%emt 0:10:44]} 16. Re1 {[%emt 0:03:09]} h6 {[%emt 0:02:00]} 17. Nh3 {[%emt 0:00:19]} Rec8 {[%emt 0:05:40]} 18. Rec1 {[%emt 0:00:54]} Kf7 {[%emt 0:02:50]} 19. e3 {[%emt 0:06:25]} Ke7 {[%emt 0:01:13]} 20. Nf4 {[%emt 0:03:58]} Rxc7 {[%emt 0:05:13]} 21. Rxc7 {[%emt 0:00:15]} Kd6 {[%emt 0:00:18]} 22. Rc3 {[%emt 0:03:03]} g5 {[%emt 0:00:22]} 23. Nd3 {[%emt 0:01:49]} Ne4 {[%emt 0:00:55]} 24. Bxe4 {[%emt 0:06:12]} fxe4 {[%emt 0:04:40]} 25. Nb4 {[%emt 0:02:01]} Bb5 {[%emt 0:01:50]} 26. a3 {[%emt 0:02:17]} a5 {[%emt 0:10:51]} 27. Na2 {[%emt 0:03:06]} Rf8 {[%emt 0:18:38]} 1/2-1/2

[Event "Seniors-LEM-65 Sachsen-Anhalt 2024"]
[Site "Magdeburg"]
[Date "2024.07.06"]
[Round "6.2"]
[White "Erler, Rainer"]
[Black "Koehler, Gerhard"]
[Result "1/2-1/2"]
[ECO "B25"]
[WhiteElo "2121"]
[BlackElo "2204"]
[Annotator "RC"]
[PlyCount "70"]
[EventDate "2024.06.25"]
[EventType "swiss"]
[EventCountry "GER"]
[SourceTitle "playchess.com"]
[Source "ChessBase"]
[SourceQuality "1"]
[TimeControl "40/5400+30:1800+30"]

1. e4 {[%emt 0:00:01]} c5 {[%emt 0:00:10]} 2. Nc3 {[%emt 0:00:05]} Nc6 {[%emt 0:00:11]} 3. g3 {[%emt 0:00:06]} g6 {[%emt 0:00:11]} 4. Bg2 {[%emt 0:00:03]} Bg7 {[%emt 0:00:13]} 5. d3 {[%emt 0:00:08]} d6 {[%emt 0:00:19]} 6. Nh3 {[%emt 0:00:12]} e6 {[%emt 0:00:18]} 7. O-O {[%emt 0:00:06]} Nge7 {[%emt 0:00:11]} 8. f4 {[%emt 0:00:46]} O-O {[%emt 0:00:24]} 9. g4 {[%emt 0:03:58]} f5 {[%emt 0:01:33]} 10. Nf2 {[%emt 1:30:05]} Rb8 {[%emt 0:00:46]} 11. Ne2 {[%emt 0:00:00]} b5 {[%emt 0:04:00]} 12. c3 {[%emt 0:00:00]} d5 {[%emt 0:11:10]} 13. gxf5 {[%emt 0:00:00]} exf5 {[%emt 0:01:30]} 14. e5 {[%emt 0:00:00]} Be6 {[%emt 0:05:17]} 15. d4 {[%emt 0:00:00]} c4 {[%emt 0:00:20]} 16. b4 {[%emt 0:00:00]} a5 {[%emt 0:01:20]} 17. a3 {[%emt 0:00:00]} Ra8 {[%emt 0:02:13]} 18. Bb2 {[%emt 0:00:00]} Nc8 {[%emt 0:02:16]} 19. a4 {[%emt 0:00:00]} Qb6 {[%emt 0:06:50]} 20. bxa5 {[%emt 0:00:00]} Nxa5 {[%emt 0:02:44]} 21. Ba3 {[%emt 0:00:00]} Rf7 {[%emt 0:05:23]} 22. Bc5 {[%emt 0:00:00]} Qb8 {[%emt 0:01:13]} 23. axb5 {[%emt 0:00:00]} Rb7 {[%emt 0:01:42]} 24. Qa4 {[%emt 0:00:00]} Nb6 {[%emt 0:07:34]} 25. Bxb6 {[%emt 0:00:00]} Rxb6 {[%emt 0:00:03]} 26. Rfb1 {[%emt 0:00:00]} Qd8 {[%emt 0:09:45]} 27. Nd1 {[%emt 0:00:00]} Bc8 {[%emt 0:02:02]} 28. Ne3 {[%emt 0:00:00]} Bb7 {[%emt 0:00:10]} 29. Qc2 {[%emt 0:00:00]} Nb3 {[%emt 0:09:25]} 30. Rxa8 Qxa8 31. Nc1 {[%emt 0:00:00]} Rxb5 {[%emt 0:00:58]} 32. Nxb3 {[%emt 0:00:00]} cxb3 {[%emt 0:01:38]} 33. Rxb3 {[%emt 0:00:00]} Ra5 {[%emt 0:02:01]} 34. Rb2 {[%emt 0:04:31]} Bh6 {[%emt 0:01:19]} 35. Qb3 {[%emt 0:05:19]} Bxf4 {[%emt 0:22:51]} 1/2-1/2

[Event "Seniors-LEM-65 Sachsen-Anhalt 2024"]
[Site "Magdeburg"]
[Date "2024.07.06"]
[Round "6.3"]
[White "Haase, Reinhard"]
[Black "Okrajek, Alexander"]
[Result "1/2-1/2"]
[ECO "E00"]
[WhiteElo "2044"]
[BlackElo "2163"]
[Annotator "RC"]
[PlyCount "25"]
[EventDate "2024.06.25"]
[EventType "swiss"]
[EventCountry "GER"]
[SourceTitle "playchess.com"]
[Source "ChessBase"]
[SourceQuality "1"]
[TimeControl "40/5400+30:1800+30"]

1. d4 {[%emt 0:00:03]} Nf6 {[%emt 0:00:23]} 2. c4 {[%emt 0:00:34]} e6 {[%emt 0:00:09]} 3. g3 {[%emt 0:00:05]} c5 {[%emt 0:01:16]} 4. dxc5 {[%emt 0:02:28]} Bxc5 {[%emt 0:01:46]} 5. Bg2 {[%emt 0:00:08]} O-O {[%emt 0:05:27]} 6. Nh3 {[%emt 0:02:41]} Bb4+ {[%emt 0:08:02]} 7. Bd2 {[%emt 0:00:57]} Qe7 {[%emt 0:03:33]} 8. O-O {[%emt 0:01:09]} Nc6 {[%emt 0:00:47]} 9. Nf4 {[%emt 0:08:06]} Rb8 {[%emt 0:06:34]} 10. Nd3 {[%emt 0:04:06]} Bxd2 {[%emt 0:03:28]} 11. Qxd2 {[%emt 0:00:55]} d5 {[%emt 0:02:47]} 12. cxd5 {[%emt 0:01:23]} Nxd5 {[%emt 0:00:48]} 13. Nc3 {[%emt 0:01:54]} 1/2-1/2

[Event "Seniors-LEM-65 Sachsen-Anhalt 2024"]
[Site "Magdeburg"]
[Date "2024.07.06"]
[Round "6.4"]
[White "Kahe, Ralph"]
[Black "Schober, Ralf"]
[Result "1/2-1/2"]
[ECO "E32"]
[WhiteElo "2129"]
[BlackElo "2090"]
[Annotator "RC"]
[PlyCount "44"]
[EventDate "2024.06.25"]
[EventType "swiss"]
[EventCountry "GER"]
[SourceTitle "playchess.com"]
[Source "ChessBase"]
[SourceQuality "1"]
[TimeControl "40/5400+30:1800+30"]

1. d4 {[%emt 0:00:02]} e6 {[%emt 0:00:09]} 2. c4 {[%emt 0:00:27]} Nf6 {[%emt 0:01:05]} 3. Nc3 {[%emt 0:02:21]} Bb4 {[%emt 0:01:36]} 4. Qc2 {[%emt 0:00:19]} O-O {[%emt 0:00:13]} 5. a3 {[%emt 0:00:06]} Bxc3+ {[%emt 0:00:37]} 6. Qxc3 {[%emt 0:00:06]} d6 {[%emt 0:00:47]} 7. Bg5 {[%emt 0:00:17]} Nbd7 {[%emt 0:00:54]} 8. e3 {[%emt 0:01:20]} h6 {[%emt 0:01:06]} 9. Bh4 {[%emt 0:00:56]} e5 {[%emt 0:01:05]} 10. Bd3 {[%emt 0:00:15]} Re8 {[%emt 0:04:56]} 11. Ne2 {[%emt 0:00:21]} b6 {[%emt 0:02:17]} 12. O-O {[%emt 0:00:12]} Bb7 {[%emt 0:00:25]} 13. Rad1 {[%emt 0:09:30]} Qe7 {[%emt 0:00:19]} 14. d5 {[%emt 0:08:08]} g5 {[%emt 0:05:59]} 15. Bg3 {[%emt 0:00:06]} Nh5 {[%emt 0:00:48]} 16. Bf5 {[%emt 0:00:19]} Bc8 {[%emt 0:00:44]} 17. Qc2 {[%emt 0:00:16]} Ndf6 {[%emt 0:06:53]} 18. Bxc8 {[%emt 0:02:25]} Raxc8 {[%emt 0:00:33]} 19. f3 {[%emt 0:02:38]} Nd7 {[%emt 0:02:15]} 20. Bf2 {[%emt 0:00:33]} e4 {[%emt 0:02:31]} 21. Nd4 {[%emt 0:01:33]} exf3 {[%emt 0:01:36]} 22. gxf3 {[%emt 0:00:35]} Qf6 {[%emt 0:03:53]} 1/2-1/2

[Event "Seniors-LEM-65 Sachsen-Anhalt 2024"]
[Site "Magdeburg"]
[Date "2024.07.06"]
[Round "6.5"]
[White "Broemel, Richard"]
[Black "Jacob, Helmut"]
[Result "1/2-1/2"]
[ECO "A80"]
[WhiteElo "2123"]
[BlackElo "2047"]
[Annotator "RC"]
[PlyCount "29"]
[EventDate "2024.06.25"]
[EventType "swiss"]
[EventCountry "GER"]
[SourceTitle "playchess.com"]
[Source "ChessBase"]
[SourceQuality "1"]
[TimeControl "40/5400+30:1800+30"]

1. d4 {[%emt 0:00:03]} f5 {[%emt 0:00:05]} 2. Bf4 {[%emt 0:00:31]} Nf6 {[%emt 0:00:31]} 3. e3 {[%emt 0:00:22]} e6 {[%emt 0:00:17]} 4. Bc4 {[%emt 0:00:45]} Be7 {[%emt 0:10:36]} 5. Nd2 {[%emt 0:02:30]} O-O {[%emt 0:02:16]} 6. h3 {[%emt 0:01:28]} b6 {[%emt 0:05:38]} 7. Qe2 {[%emt 0:00:26]} Bb7 {[%emt 0:00:16]} 8. Ngf3 {[%emt 0:00:10]} Ne4 {[%emt 0:02:42]} 9. O-O-O {[%emt 0:07:19]} d5 {[%emt 0:00:13]} 10. Bd3 {[%emt 0:00:54]} c5 {[%emt 0:00:20]} 11. Ne5 {[%emt 0:13:59]} Nc6 {[%emt 0:06:29]} 12. Bxe4 {[%emt 0:03:35]} fxe4 {[%emt 0:00:22]} 13. Nxc6 {[%emt 0:01:00]} Bxc6 {[%emt 0:00:01]} 14. dxc5 {[%emt 0:00:40]} Qc8 {[%emt 0:05:42]} 15. Bd6 {[%emt 0:02:17]} 1/2-1/2

[Event "Seniors-LEM-65 Sachsen-Anhalt 2024"]
[Site "Magdeburg"]
[Date "2024.07.06"]
[Round "6.6"]
[White "Gehrmann, Rudolf-Rainer"]
[Black "Leibovitch, Iziaslav"]
[Result "1/2-1/2"]
[ECO "E63"]
[WhiteElo "1980"]
[BlackElo "2105"]
[Annotator "NA RC"]
[PlyCount "137"]
[EventDate "2024.06.25"]
[EventType "swiss"]
[EventCountry "GER"]
[SourceTitle "playchess.com"]
[Source "ChessBase"]
[SourceQuality "1"]
[TimeControl "40/5400+30:1800+30"]

1. c4 {[%emt 0:00:03]} Nf6 {[%emt 0:00:24]} 2. g3 {[%emt 0:00:44]} g6 {[%emt 0:00:13]} 3. Bg2 {[%emt 0:00:08]} Bg7 {[%emt 0:00:08]} 4. Nf3 {[%emt 0:00:55]} O-O {[%emt 0:00:19]} 5. O-O {[%emt 0:00:17]} d6 {[%emt 0:00:30]} 6. d4 {[%emt 0:00:52]} Nc6 {[%emt 0:00:24]} 7. Nc3 {[%emt 0:00:58]} Bf5 {[%emt 0:00:21]} 8. b3 {[%emt 0:05:38]} Ne4 {[%emt 0:10:20] 8...e5 is not played anymore.} 9. Bb2 {[%emt 0:00:27]} a6 {[%emt 0:10:10]} (9... Nxc3 $11 10. Bxc3 Re8) 10. e3 {[%emt 0:03:07] E63: King's Indian: Fianchetto: Panno Variation with 7...a6.} (10. Nd5 $16) 10... Qd7 $146 {[%emt 0:03:39]} ({Predecessor:} 10... Nxc3 11. Bxc3 Be4 12. Re1 e5 13. d5 Ne7 14. Bf1 Bf5 15. e4 Bd7 16. b4 f5 17. Ng5 fxe4 18. Bg2 Nf5 19. Bxe4 Qxg5 {0-1 Goh,Z (2306)-Antunes,L (2045) Titled Tuesday intern op 30th Apr Early blitz 2024 (5)}) 11. Nh4 {[%emt 0:07:23]} Nxc3 {[%emt 0:00:31]} 12. Bxc3 {[%emt 0:00:09]} Bh3 {[%emt 0:00:41]} 13. Bxh3 {[%emt 0:06:16]} Qxh3 {[%emt 0:00:13]} 14. Ng2 {[%emt 0:02:38]} e5 {[%emt 0:02:09]} 15. dxe5 {[%emt 0:14:19]} dxe5 {[%emt 0:06:22]} 16. Qc2 {[%emt 0:03:58]} Qe6 {[%emt 0:06:20]} 17. Rad1 {[%emt 0:02:14]} Rad8 {[%emt 0:00:46]} 18. Rxd8 {[%emt 0:01:15]} Rxd8 {[%emt 0:00:29]} 19. Rd1 {[%emt 0:02:39]} Rd6 {[%emt 0:04:07]} 20. Rd2 {[%emt 0:01:27]} Bf8 {[%emt 0:04:42]} 21. Qd1 {[%emt 0:02:39]} Rxd2 {[%emt 0:13:30]} 22. Qxd2 {[%emt 0:00:24]} f6 {[%emt 0:02:17]} 23. e4 {[%emt 0:01:53]} Bc5 {[%emt 0:05:27]} 24. Ne3 $11 {[%emt 0:05:59]} Bxe3 {[%emt 0:03:53]} 25. Qxe3 {[%emt 0:01:47]} Qd6 {[%emt 0:02:29]} 26. Kg2 {[%emt 0:02:14]} Nd4 {[%emt 0:05:17]} 27. Qd2 {[%emt 0:05:08]} c5 {[%emt 0:01:58]} 28. f3 {[%emt 0:03:18]} b6 {[%emt 0:04:02]} 29. Kf2 {[%emt 0:04:52]} Qe6 {[%emt 0:03:04]} 30. Kg2 {[%emt 0:00:16]} Kg7 {[%emt 0:00:29]} 31. Qd1 {[%emt 0:01:58]} h5 {[%emt 0:01:56]} 32. h4 {[%emt 0:01:18]} a5 {[%emt 0:01:52]} 33. Qd3 {[%emt 0:03:31]} Qc6 {[%emt 0:01:12]} 34. Bd2 {[%emt 0:01:30]} Qe8 {[%emt 0:02:53]} 35. Qe3 {[%emt 0:05:06]} Qh8 {[%emt 0:02:25]} 36. f4 {[%emt 0:03:34]} Nc2 {[%emt 0:01:49]} 37. Qd3 {[%emt 0:02:24]} Nd4 {[%emt 0:00:07]} 38. fxe5 {[%emt 0:00:53]} fxe5 {[%emt 0:00:28]} 39. Qe3 {[%emt 0:00:54]} Qe8 {[%emt 0:00:29]} 40. Qh6+ {[%emt 0:02:04]} Kg8 {[%emt 0:00:10]} 41. Qe3 {[%emt 0:10:26]} Qf7 {[%emt 0:00:21]} 42. Qf2 {[%emt 0:01:55]} Qe6 {[%emt 0:00:27]} 43. Bh6 {[%emt 0:01:08]} Qe7 {[%emt 0:05:38]} 44. Bg5 {[%emt 0:02:04]} Qb7 {[%emt 0:00:11]} 45. Qe3 {[%emt 0:00:35]} Nf5 {[%emt 0:00:49]} 46. Qd3 {[%emt 0:00:28]} Nd4 {[%emt 0:00:38]} 47. Bf6 {[%emt 0:01:10]} Qc7 {[%emt 0:04:13]} 48. Qe3 {[%emt 0:00:49]} Kh7 {[%emt 0:00:11]} 49. Qg5 {[%emt 0:02:15]} Nc6 {[%emt 0:05:01]} 50. Qd2 {[%emt 0:02:48]} Nd4 {[%emt 0:01:04]} 51. Qg5 {[%emt 0:06:14]} Nc6 {[%emt 0:00:15]} 52. g4 {[%emt 0:01:10]} hxg4 {[%emt 0:04:22]} 53. Qxg4 {[%emt 0:03:26]} Qd6 {[%emt 0:01:50]} 54. Bg5 {[%emt 0:00:43]} Qd3 {[%emt 0:05:12]} 55. Qf3 {[%emt 0:00:24]} Qxf3+ {[%emt 0:00:53]} 56. Kxf3 {[%emt 0:00:03]} Kg7 {[%emt 0:00:10]} 57. Kg4 {[%emt 0:00:18]} Kf7 {[%emt 0:00:34]} 58. h5 {[%emt 0:00:14]} gxh5+ {[%emt 0:00:05]} 59. Kxh5 {[%emt 0:00:05]} Ke6 {[%emt 0:00:56]} 60. Kg6 {[%emt 0:00:47]} a4 {[%emt 0:00:30]} 61. Bd2 {[%emt 0:01:16]} axb3 {[%emt 0:03:14]} 62. axb3 {[%emt 0:00:16]} Nd4 {[%emt 0:02:29]} 63. b4 {[%emt 0:00:58]} Nc6 {[%emt 0:01:22]} 64. bxc5 {[%emt 0:00:25]} bxc5 {[%emt 0:00:11]} 65. Kg5 {[%emt 0:01:48]} Nb4 {[%emt 0:00:17]} 66. Be3 {[%emt 0:01:16]} Nd3 {[%emt 0:00:56]} 67. Kg6 {[%emt 0:00:25]} Nf4+ {[%emt 0:01:28]} 68. Kg5 {[%emt 0:00:11]} Nd3 {[%emt 0:00:10]} 69. Kg6 {[%emt 0:00:07]} 1/2-1/2

[Event "Seniors-LEM-65 Sachsen-Anhalt 2024"]
[Site "Magdeburg"]
[Date "2024.07.06"]
[Round "6.7"]
[White "Poetke, Dan-Peter"]
[Black "Krueger, Erich"]
[Result "0-1"]
[ECO "A48"]
[WhiteElo "1968"]
[BlackElo "2095"]
[Annotator "NA RC"]
[PlyCount "52"]
[EventDate "2024.06.25"]
[EventType "swiss"]
[EventCountry "GER"]
[SourceTitle "playchess.com"]
[Source "ChessBase"]
[SourceQuality "1"]
[TimeControl "40/5400+30:1800+30"]

1. d4 {[%emt 0:00:03]} Nf6 {[%emt 0:00:10]} 2. Nf3 {[%emt 0:00:02]} g6 {[%emt 0:00:07]} 3. Bf4 {[%emt 0:00:22]} d6 {[%emt 0:00:25]} 4. e3 {[%emt 0:00:06]} Bg7 {[%emt 0:00:08]} 5. h3 {[%emt 0:00:10]} O-O {[%emt 0:00:15]} 6. Be2 {[%emt 0:00:04]} c5 {[%emt 0:01:56] 6...b6 is a critical line.} 7. O-O {[%emt 0:00:09]} b6 {[%emt 0:04:14] A48: 1 d4 Nf6 2 Nf3 g6: Torre, London and Colle Systems.} 8. a4 {[%emt 0:01:56]} Bb7 {[%emt 0:03:55]} 9. a5 {[%emt 0:00:43]} Nbd7 {[%emt 0:08:01]} 10. a6 {[%emt 0:01:01]} Bc6 {[%emt 0:05:51]} 11. Nc3 {[%emt 0:00:11]} d5 {[%emt 0:04:56]} 12. Nb5 $146 {[%emt 0:04:38]} ({Predecessor:} 12. Ne5 Nxe5 13. Bxe5 Qd7 14. dxc5 bxc5 15. Ra5 Qe6 16. Bxf6 Bxf6 17. Rxc5 Rfd8 18. Bf3 Bxc3 19. bxc3 {½-½ Osmak,I (2405)-Shohradova,L (1950) Olympiad Women-43 2018 (2.1)}) 12... c4 {[%emt 0:06:27]} 13. Nc3 {[%emt 0:00:19]} b5 {[%emt 0:03:24]} 14. b4 {[%emt 0:10:03]} Qb6 {[%emt 0:05:26]} 15. Ne5 {[%emt 0:03:18]} Nb8 {[%emt 0:01:25]} 16. Ra5 {[%emt 0:06:01]} Ne4 {[%emt 0:02:29]} 17. Nxe4 {[%emt 0:14:37]} (17. Nxc6 $1 $14 Nxc3 18. Nxe7+ Kh8 19. Qe1 Nxe2+ 20. Qxe2) 17... dxe4 {[%emt 0:00:09]} 18. Qa1 {[%emt 0:06:08]} ({White should play} 18. d5 $15 Rd8 19. Qd4 (19. Nxc6 $2 {is the wrong capture.} Nxc6 20. dxc6 Rxd1 $19)) 18... f6 {[%emt 0:02:54] [#]} 19. Ng4 $2 {[%emt 0:01:45]} ({White has to play} 19. Nxc4 $1 $18 bxc4 20. Bxc4+ Kh8 21. b5) 19... h5 {[%emt 0:02:13]} 20. Bxb8 {[%emt 0:03:17]} Raxb8 {[%emt 0:02:15]} 21. Nh2 {[%emt 0:00:08]} f5 {[%emt 0:03:05]} 22. c3 {[%emt 0:07:48]} e5 {[%emt 0:01:36]} 23. dxe5 {[%emt 0:01:40]} Rbe8 {[%emt 0:01:10]} 24. g3 {[%emt 0:05:38]} Bxe5 $19 {[%emt 0:00:19]} 25. Rd1 {[%emt 0:01:15]} Bxg3 {[%emt 0:02:35]} 26. Rd6 {[%emt 0:01:33]} Bxd6 {[%emt 0:00:10]} 0-1

[Event "Seniors-LEM-65 Sachsen-Anhalt 2024"]
[Site "Magdeburg"]
[Date "2024.07.06"]
[Round "6.8"]
[White "Renner, Bernd"]
[Black "Kolthoff, Siegmund"]
[Result "1/2-1/2"]
[ECO "A31"]
[WhiteElo "1997"]
[BlackElo "2090"]
[Annotator "RC"]
[PlyCount "63"]
[EventDate "2024.06.25"]
[EventType "swiss"]
[EventCountry "GER"]
[SourceTitle "playchess.com"]
[Source "ChessBase"]
[SourceQuality "1"]
[TimeControl "40/5400+30:1800+30"]

1. e4 {[%emt 0:00:03]} c5 {[%emt 0:01:13]} 2. Nf3 {[%emt 0:00:08]} d6 {[%emt 0:00:32]} 3. d4 {[%emt 0:00:07]} cxd4 {[%emt 0:00:15]} 4. Nxd4 {[%emt 0:00:05]} a6 {[%emt 0:00:12]} 5. c4 {[%emt 0:00:20]} Nf6 {[%emt 0:00:10]} 6. Nc3 {[%emt 0:00:06]} e6 {[%emt 0:00:14]} 7. Be2 {[%emt 0:00:12]} Be7 {[%emt 0:00:26]} 8. O-O {[%emt 0:00:08]} Nbd7 {[%emt 0:00:20]} 9. Be3 {[%emt 0:02:00]} Qc7 {[%emt 0:00:13]} 10. Rc1 {[%emt 0:01:00]} b6 {[%emt 0:00:15]} 11. Qd2 {[%emt 0:00:38]} Bb7 {[%emt 0:00:11]} 12. f3 {[%emt 0:00:08]} O-O {[%emt 0:00:12]} 13. Rfd1 {[%emt 0:00:32]} Rad8 {[%emt 0:01:07]} 14. Qe1 {[%emt 0:01:44]} Rfe8 {[%emt 0:01:14]} 15. Qf2 {[%emt 0:01:17]} Bf8 {[%emt 0:06:32]} 16. Kh1 {[%emt 0:01:46]} Rc8 {[%emt 0:08:07]} 17. Bf1 {[%emt 0:02:24]} Qb8 {[%emt 0:09:23]} 18. Nc2 {[%emt 0:03:05]} Qc7 {[%emt 0:09:02]} 19. Ne1 {[%emt 0:01:34]} Ba8 {[%emt 0:08:27]} 20. b3 {[%emt 0:04:24]} Qb7 {[%emt 0:05:04]} 21. Bf4 {[%emt 0:02:53]} Ne5 {[%emt 0:03:38]} 22. Nd3 {[%emt 0:02:50]} Ng6 {[%emt 0:03:44]} 23. Be3 {[%emt 0:01:27]} Nd7 {[%emt 0:00:30]} 24. Nb2 {[%emt 0:11:18]} Nge5 {[%emt 0:01:32]} 25. h3 {[%emt 0:00:52]} Be7 {[%emt 0:02:34]} 26. Kh2 {[%emt 0:10:14]} Qc7 {[%emt 0:02:29]} 27. Kh1 {[%emt 0:00:33]} Rb8 {[%emt 0:01:42]} 28. Rc2 {[%emt 0:04:20]} Rec8 {[%emt 0:03:45]} 29. Rcd2 {[%emt 0:06:34]} Rd8 {[%emt 0:01:58]} 30. Bd4 {[%emt 0:02:31]} Nc6 {[%emt 0:03:26]} 31. Be3 {[%emt 0:00:20]} Nce5 {[%emt 0:00:08]} 32. Bd4 {[%emt 0:00:14]} 1/2-1/2

[Event "Seniors-LEM-65 Sachsen-Anhalt 2024"]
[Site "Magdeburg"]
[Date "2024.07.06"]
[Round "6.9"]
[White "Waagener, Ulrich"]
[Black "Hess, Juergen"]
[Result "1/2-1/2"]
[ECO "C44"]
[WhiteElo "2080"]
[BlackElo "1958"]
[Annotator "RC"]
[PlyCount "22"]
[EventDate "2024.06.25"]
[EventType "swiss"]
[EventCountry "GER"]
[SourceTitle "playchess.com"]
[Source "ChessBase"]
[SourceQuality "1"]
[TimeControl "40/5400+30:1800+30"]

1. e4 {[%emt 0:00:03]} e5 {[%emt 0:09:00]} 2. Nf3 {[%emt 0:03:43]} Nc6 {[%emt 0:00:14]} 3. c3 {[%emt 0:00:51]} f5 {[%emt 0:10:18]} 4. d4 {[%emt 0:03:07]} fxe4 {[%emt 0:01:20]} 5. Nxe5 {[%emt 0:00:15]} Nf6 {[%emt 0:01:13]} 6. Bb5 {[%emt 0:04:14]} a6 {[%emt 0:06:46]} 7. Ba4 {[%emt 0:02:13]} Bd6 {[%emt 0:10:06]} 8. Bf4 {[%emt 0:17:56]} Qe7 {[%emt 0:01:47]} 9. Bxc6 {[%emt 0:03:29]} dxc6 {[%emt 0:03:25]} 10. Bg3 {[%emt 0:03:08]} O-O {[%emt 0:01:35]} 11. O-O {[%emt 0:03:33]} c5 {[%emt 0:07:35]} 1/2-1/2

[Event "Seniors-LEM-65 Sachsen-Anhalt 2024"]
[Site "Magdeburg"]
[Date "2024.07.06"]
[Round "6.10"]
[White "Just, Joachim"]
[Black "Ruether, Rudolf"]
[Result "1/2-1/2"]
[ECO "A46"]
[WhiteElo "1909"]
[BlackElo "2065"]
[Annotator "NA RC"]
[PlyCount "24"]
[EventDate "2024.06.25"]
[EventType "swiss"]
[EventCountry "GER"]
[SourceTitle "playchess.com"]
[Source "ChessBase"]
[SourceQuality "1"]
[TimeControl "40/5400+30:1800+30"]

1. d4 {[%emt 0:00:07]} Nf6 {[%emt 0:00:13]} 2. Nf3 {[%emt 0:00:11]} e6 {[%emt 0:00:40]} 3. Bg5 {[%emt 0:00:27]} c5 {[%emt 0:01:42]} 4. c3 {[%emt 0:00:38]} b6 {[%emt 0:03:28]} 5. e3 {[%emt 0:00:42]} Be7 {[%emt 0:01:08]} 6. Nbd2 {[%emt 0:00:34]} h6 {[%emt 0:00:48]} 7. Bf4 {[%emt 0:00:51]} O-O {[%emt 0:01:03]} 8. Be2 {[%emt 0:00:43]} d6 {[%emt 0:03:49]} 9. O-O {[%emt 0:02:17]} Nh5 {[%emt 0:07:54]} 10. h3 {[%emt 0:01:23]} Nxf4 {[%emt 0:00:12]} 11. exf4 {[%emt 0:00:08]} Nc6 {[%emt 0:10:12]} 12. dxc5 $15 {[%emt 0:03:20]} (12. Nc4 $11) 12... dxc5 {[%emt 1:05:21]} 1/2-1/2

[Event "Seniors-LEM-65 Sachsen-Anhalt 2024"]
[Site "Magdeburg"]
[Date "2024.07.06"]
[Round "6.11"]
[White "Krueger, Wolfgang"]
[Black "Wolff, Stefan"]
[Result "1/2-1/2"]
[ECO "B25"]
[WhiteElo "2054"]
[BlackElo "1956"]
[Annotator "RC"]
[PlyCount "35"]
[EventDate "2024.06.25"]
[EventType "swiss"]
[EventCountry "GER"]
[SourceTitle "playchess.com"]
[Source "ChessBase"]
[SourceQuality "1"]
[TimeControl "40/5400+30:1800+30"]

1. e4 {[%emt 0:00:03]} c5 {[%emt 0:00:06]} 2. Nc3 {[%emt 0:01:17]} Nc6 {[%emt 0:00:33]} 3. g3 {[%emt 0:00:09]} g6 {[%emt 0:00:08]} 4. Bg2 {[%emt 0:00:09]} Bg7 {[%emt 0:00:05]} 5. d3 {[%emt 0:00:19]} d6 {[%emt 0:02:37]} 6. f4 {[%emt 0:00:27]} e6 {[%emt 0:01:23]} 7. Nf3 {[%emt 0:00:29]} Nge7 {[%emt 0:00:24]} 8. O-O {[%emt 0:00:09]} O-O {[%emt 0:01:18]} 9. Be3 {[%emt 0:00:29]} a6 {[%emt 0:03:35]} 10. a4 {[%emt 0:03:30]} Rb8 {[%emt 0:01:06]} 11. Kh1 {[%emt 0:05:33]} b5 {[%emt 0:02:24]} 12. axb5 {[%emt 0:03:38]} axb5 {[%emt 0:00:07]} 13. d4 {[%emt 0:00:59]} cxd4 {[%emt 0:11:19]} 14. Nxd4 {[%emt 0:00:08]} Nxd4 {[%emt 0:02:38]} 15. Bxd4 {[%emt 0:00:03]} Bxd4 {[%emt 0:00:37]} 16. Qxd4 {[%emt 0:00:07]} b4 {[%emt 0:00:51]} 17. Nd1 {[%emt 0:14:34]} d5 {[%emt 0:13:19]} 18. exd5 {[%emt 0:16:21]} 1/2-1/2

[Event "Seniors-LEM-65 Sachsen-Anhalt 2024"]
[Site "Magdeburg"]
[Date "2024.07.06"]
[Round "6.12"]
[White "Cordes, Lothar"]
[Black "Klettke, Wolfgang"]
[Result "1/2-1/2"]
[ECO "B38"]
[WhiteElo "1858"]
[BlackElo "2008"]
[Annotator "NA RC"]
[PlyCount "30"]
[EventDate "2024.06.25"]
[EventType "swiss"]
[EventCountry "GER"]
[SourceTitle "playchess.com"]
[Source "ChessBase"]
[SourceQuality "1"]
[TimeControl "40/5400+30:1800+30"]

1. d4 {[%emt 0:00:04]} Nf6 {[%emt 0:00:46]} 2. Nf3 {[%emt 0:00:23]} g6 {[%emt 0:00:17]} 3. c4 {[%emt 0:00:10]} c5 {[%emt 0:01:48]} 4. Nc3 {[%emt 0:00:48]} cxd4 {[%emt 0:02:57]} 5. Nxd4 {[%emt 0:00:10]} Bg7 {[%emt 0:01:39]} 6. e4 {[%emt 0:01:11]} d6 {[%emt 0:01:15]} 7. Be2 {[%emt 0:00:37]} O-O {[%emt 0:00:16]} 8. Be3 {[%emt 0:00:45]} Nc6 {[%emt 0:00:11]} 9. O-O {[%emt 0:01:43]} Nxd4 {[%emt 0:06:21]} 10. Bxd4 {[%emt 0:00:20]} b6 {[%emt 0:00:08]} 11. f4 {[%emt 0:03:55]} Bb7 {[%emt 0:00:47]} 12. Bf3 {[%emt 0:00:23]} Qc7 {[%emt 0:02:57]} 13. b3 {[%emt 0:04:51]} Nd7 {[%emt 0:01:09]} 14. Bxg7 {[%emt 0:00:32]} Kxg7 {[%emt 0:00:02]} 15. Nd5 $14 {[%emt 0:02:37]} Bxd5 {[%emt 0:00:19]} 1/2-1/2